[Event "Titled Tuesday Blitz March 22 Early 2022"]
[White "Grandelius, Nils"]
[Black "Babazada, Khazar"]
[WhiteFideId "1710400"]
[BlackFideId "13413554"]
[WhiteElo "2617"]
[BlackElo "2418"]
[Result "1/2-1/2"]
[Round "07"]
[TimeControl "180+1"]
[Date "2022.03.22"]
[WhiteClock "0:00:09"]
[BlackClock "0:00:08"]

1. c4 {[%clk 0:03:00]}  g6 {[%clk 0:03:00]} 2. g3 {[%clk 0:02:58]}  Bg7 {[%clk 0:03:01]} 3. Bg2 {[%clk 0:02:59]}  Nf6 {[%clk 0:02:59]} 4. Nc3 {[%clk 0:02:59]}  O-O {[%clk 0:02:59]} 5. Nf3 {[%clk 0:02:58]}  c5 {[%clk 0:02:59]} 6. O-O {[%clk 0:02:55]}  Nc6 {[%clk 0:02:59]} 7. d4 {[%clk 0:02:55]}  d6 {[%clk 0:02:55]} 8. b3 {[%clk 0:02:48]}  Bd7 {[%clk 0:02:41]} 9. Bb2 {[%clk 0:02:41]}  Qc8 {[%clk 0:02:41]} 10. Rc1 {[%clk 0:02:30]}  Bh3 {[%clk 0:02:39]} 11. Nd5 {[%clk 0:02:28]}  Bxg2 {[%clk 0:01:55]} 12. Kxg2 {[%clk 0:02:29]}  Qf5 {[%clk 0:01:55]} 13. Ne3 {[%clk 0:02:14]}  Qh5 {[%clk 0:01:54]} 14. d5 {[%clk 0:02:02]}  Nb8 {[%clk 0:01:50]} 15. h3 {[%clk 0:01:56]}  Qh6 {[%clk 0:01:41]} 16. Rc2 {[%clk 0:01:43]}  Bh8 {[%clk 0:01:30]} 17. Qa1 {[%clk 0:01:34]}  Nbd7 {[%clk 0:01:29]} 18. Rh1 {[%clk 0:01:33]}  Rfe8 {[%clk 0:01:26]} 19. h4 {[%clk 0:01:27]}  e6 {[%clk 0:01:18]} 20. h5 {[%clk 0:01:14]}  Qf8 {[%clk 0:01:09]} 21. hxg6 {[%clk 0:01:11]}  fxg6 {[%clk 0:01:10]} 22. Ng5 {[%clk 0:00:59]}  exd5 {[%clk 0:01:05]} 23. Nxd5 {[%clk 0:00:54]}  h6 {[%clk 0:00:59]} 24. Nf3 {[%clk 0:00:44]}  Bg7 {[%clk 0:00:51]} 25. Nc7 {[%clk 0:00:45]}  Qf7 {[%clk 0:00:43]} 26. Nxa8 {[%clk 0:00:44]}  Rxa8 {[%clk 0:00:44]} 27. Rd1 {[%clk 0:00:43]}  Bf8 {[%clk 0:00:36]} 28. Qc1 {[%clk 0:00:35]}  Re8 {[%clk 0:00:36]} 29. Rcd2 {[%clk 0:00:33]}  Ne4 {[%clk 0:00:34]} 30. Rd3 {[%clk 0:00:32]}  g5 {[%clk 0:00:35]} 31. Rf1 {[%clk 0:00:28]}  Re6 {[%clk 0:00:28]} 32. Re3 {[%clk 0:00:27]}  Qe8 {[%clk 0:00:23]} 33. Nd2 {[%clk 0:00:23]}  Nef6 {[%clk 0:00:18]} 34. Rxe6 {[%clk 0:00:21]}  Qxe6 {[%clk 0:00:19]} 35. Qd1 {[%clk 0:00:18]}  Bg7 {[%clk 0:00:16]} 36. Nf3 {[%clk 0:00:17]}  g4 {[%clk 0:00:15]} 37. Nh4 {[%clk 0:00:18]}  d5 {[%clk 0:00:14]} 38. cxd5 {[%clk 0:00:17]}  Nxd5 {[%clk 0:00:14]} 39. Bxg7 {[%clk 0:00:17]}  Kxg7 {[%clk 0:00:15]} 40. Qd3 {[%clk 0:00:16]}  N7f6 {[%clk 0:00:15]} 41. Re1 {[%clk 0:00:15]}  Ne4 {[%clk 0:00:11]} 42. Rd1 {[%clk 0:00:09]}  Nec3 {[%clk 0:00:07]} 43. Rd2 {[%clk 0:00:09]}  Qe5 {[%clk 0:00:05]} 44. e4 {[%clk 0:00:09]}  Nf6 {[%clk 0:00:02]} 45. Nf5+ {[%clk 0:00:06]}  Kg6 {[%clk 0:00:03]} 46. Nh4+ {[%clk 0:00:06]}  Kg5 {[%clk 0:00:04]} 47. Qe3+ {[%clk 0:00:07]}  Kh5 {[%clk 0:00:04]} 48. Rd8 {[%clk 0:00:04]}  Qxe4+ {[%clk 0:00:04]} 49. Qxe4 {[%clk 0:00:04]}  Ncxe4 {[%clk 0:00:05]} 50. Rb8 {[%clk 0:00:04]}  Nd6 {[%clk 0:00:05]} 51. Rd8 {[%clk 0:00:04]}  Nfe8 {[%clk 0:00:05]} 52. Rd7 {[%clk 0:00:04]}  Kg5 {[%clk 0:00:06]} 53. Kf1 {[%clk 0:00:04]}  Kf6 {[%clk 0:00:06]} 54. Ke2 {[%clk 0:00:05]}  Ke6 {[%clk 0:00:06]} 55. Rh7 {[%clk 0:00:06]}  Nf7 {[%clk 0:00:06]} 56. Ng6 {[%clk 0:00:05]}  Kf6 {[%clk 0:00:06]} 57. Nf4 {[%clk 0:00:05]}  Ned6 {[%clk 0:00:06]} 58. Kd3 {[%clk 0:00:06]}  Nf5 {[%clk 0:00:06]} 59. Kc3 {[%clk 0:00:05]}  b6 {[%clk 0:00:06]} 60. Kc4 {[%clk 0:00:05]}  N5d6+ {[%clk 0:00:07]} 61. Kd5 {[%clk 0:00:06]}  Ne4 {[%clk 0:00:07]} 62. Kxe4 {[%clk 0:00:06]}  Ng5+ {[%clk 0:00:08]} 63. Kd5 {[%clk 0:00:05]}  Nxh7 {[%clk 0:00:09]} 64. Kc6 {[%clk 0:00:06]}  Kg5 {[%clk 0:00:09]} 65. Kb7 {[%clk 0:00:07]}  h5 {[%clk 0:00:10]} 66. Ng2 {[%clk 0:00:07]}  h4 {[%clk 0:00:10]} 67. Nxh4 {[%clk 0:00:06]}  Nf6 {[%clk 0:00:10]} 68. Kxa7 {[%clk 0:00:06]}  b5 {[%clk 0:00:11]} 69. Kb6 {[%clk 0:00:06]}  c4 {[%clk 0:00:11]} 70. Ng2 {[%clk 0:00:04]}  c3 {[%clk 0:00:11]} 71. Ne1 {[%clk 0:00:04]}  b4 {[%clk 0:00:11]} 72. Kb5 {[%clk 0:00:03]}  Ne4 {[%clk 0:00:11]} 73. Kxb4 {[%clk 0:00:04]}  Nxf2 {[%clk 0:00:11]} 74. Kxc3 {[%clk 0:00:04]}  Ne4+ {[%clk 0:00:12]} 75. Kd4 {[%clk 0:00:05]}  Nxg3 {[%clk 0:00:13]} 76. a4 {[%clk 0:00:05]}  Nf5+ {[%clk 0:00:13]} 77. Ke4 {[%clk 0:00:05]}  g3 {[%clk 0:00:13]} 78. a5 {[%clk 0:00:05]}  Nd6+ {[%clk 0:00:09]} 79. Kd5 {[%clk 0:00:05]}  Nb5 {[%clk 0:00:08]} 80. Kc5 {[%clk 0:00:06]}  Nc7 {[%clk 0:00:07]} 81. Kb6 {[%clk 0:00:04]}  Nd5+ {[%clk 0:00:07]} 82. Kc6 {[%clk 0:00:04]}  Nb4+ {[%clk 0:00:07]} 83. Kb5 {[%clk 0:00:05]}  Nd5 {[%clk 0:00:08]} 84. a6 {[%clk 0:00:05]}  Nc7+ {[%clk 0:00:08]} 85. Kb6 {[%clk 0:00:06]}  Nxa6 {[%clk 0:00:06]} 86. Kxa6 {[%clk 0:00:07]}  Kf4 {[%clk 0:00:07]} 87. b4 {[%clk 0:00:07]}  Ke3 {[%clk 0:00:08]} 88. Ng2+ {[%clk 0:00:07]}  Kf3 {[%clk 0:00:07]} 89. Nh4+ {[%clk 0:00:08]}  Kg4 {[%clk 0:00:08]} 90. Ng2 {[%clk 0:00:08]}  Kf3 {[%clk 0:00:08]} 91. Nh4+ {[%clk 0:00:08]}  Kg4 {[%clk 0:00:08]} 92. Ng2 {[%clk 0:00:09]}  Kf3 {[%clk 0:00:08]} 1/2-1/2


[Site "https://www.chess.com"]

[Event "Titled Tuesday Blitz March 22 Early 2022"]
[White "Iskusnyh, Sergei"]
[Black "Perera Alfonso, Rene Humberto"]
[WhiteFideId "4120027"]
[BlackFideId "3514722"]
[WhiteElo "2492"]
[BlackElo "2313"]
[Result "0-1"]
[Round "07"]
[TimeControl "180+1"]
[Date "2022.03.22"]
[WhiteClock "0:00:02"]
[BlackClock "0:00:41"]

1. d4 {[%clk 0:03:00]}  d5 {[%clk 0:02:59]} 2. c4 {[%clk 0:03:00]}  c6 {[%clk 0:02:59]} 3. Nf3 {[%clk 0:02:59]}  Nf6 {[%clk 0:02:59]} 4. Qb3 {[%clk 0:03:00]}  dxc4 {[%clk 0:02:58]} 5. Qxc4 {[%clk 0:03:00]}  Bg4 {[%clk 0:02:58]} 6. Nbd2 {[%clk 0:02:59]}  e6 {[%clk 0:02:58]} 7. g3 {[%clk 0:02:59]}  Nbd7 {[%clk 0:02:58]} 8. Bg2 {[%clk 0:02:59]}  Be7 {[%clk 0:02:58]} 9. O-O {[%clk 0:02:57]}  O-O {[%clk 0:02:58]} 10. Qb3 {[%clk 0:02:57]}  Nb6 {[%clk 0:02:54]} 11. a4 {[%clk 0:02:54]}  a5 {[%clk 0:02:53]} 12. e3 {[%clk 0:02:34]}  Bb4 {[%clk 0:02:52]} 13. Ne5 {[%clk 0:02:31]}  Bf5 {[%clk 0:02:52]} 14. Ndc4 {[%clk 0:02:26]}  Nxc4 {[%clk 0:02:47]} 15. Nxc4 {[%clk 0:02:27]}  h6 {[%clk 0:02:36]} 16. Bd2 {[%clk 0:02:26]}  Qe7 {[%clk 0:02:27]} 17. Bxb4 {[%clk 0:02:23]}  Qxb4 {[%clk 0:02:28]} 18. Qxb4 {[%clk 0:02:21]}  axb4 {[%clk 0:02:28]} 19. Rfc1 {[%clk 0:02:18]}  Ra6 {[%clk 0:02:27]} 20. Nd6 {[%clk 0:02:09]}  Ra7 {[%clk 0:02:19]} 21. Rc4 {[%clk 0:01:51]}  b3 {[%clk 0:01:59]} 22. Nxf5 {[%clk 0:01:43]}  exf5 {[%clk 0:01:59]} 23. Rb4 {[%clk 0:01:43]}  Rfa8 {[%clk 0:01:57]} 24. Bf3 {[%clk 0:01:39]}  Kf8 {[%clk 0:01:41]} 25. Kg2 {[%clk 0:01:26]}  Ke7 {[%clk 0:01:41]} 26. Rxb3 {[%clk 0:01:26]}  Kd6 {[%clk 0:01:41]} 27. Rb4 {[%clk 0:01:22]}  Kc7 {[%clk 0:01:40]} 28. b3 {[%clk 0:01:19]}  Kd6 {[%clk 0:01:39]} 29. Rc1 {[%clk 0:01:19]}  g5 {[%clk 0:01:37]} 30. h3 {[%clk 0:01:03]}  g4 {[%clk 0:01:34]} 31. hxg4 {[%clk 0:01:02]}  fxg4 {[%clk 0:01:34]} 32. Be2 {[%clk 0:01:02]}  h5 {[%clk 0:01:35]} 33. Rc5 {[%clk 0:01:01]}  Nd5 {[%clk 0:01:32]} 34. Rbc4 {[%clk 0:00:59]}  f5 {[%clk 0:01:29]} 35. Bd3 {[%clk 0:00:57]}  Rf8 {[%clk 0:01:25]} 36. Rc1 {[%clk 0:00:55]}  Ne7 {[%clk 0:01:18]} 37. Rh1 {[%clk 0:00:53]}  b6 {[%clk 0:01:17]} 38. Re5 {[%clk 0:00:51]}  Rh8 {[%clk 0:01:13]} 39. Bxf5 {[%clk 0:00:49]}  Ra5 {[%clk 0:01:08]} 40. Rxa5 {[%clk 0:00:43]}  bxa5 {[%clk 0:01:09]} 41. Bxg4 {[%clk 0:00:43]}  Rb8 {[%clk 0:01:09]} 42. Bd1 {[%clk 0:00:40]}  Nd5 {[%clk 0:01:00]} 43. Rxh5 {[%clk 0:00:39]}  Nc3 {[%clk 0:01:00]} 44. Rh6+ {[%clk 0:00:33]}  Ke7 {[%clk 0:00:56]} 45. Bf3 {[%clk 0:00:28]}  Rxb3 {[%clk 0:00:55]} 46. Bxc6 {[%clk 0:00:25]}  Rb2 {[%clk 0:00:55]} 47. Bf3 {[%clk 0:00:19]}  Nxa4 {[%clk 0:00:53]} 48. Ra6 {[%clk 0:00:19]}  Nb6 {[%clk 0:00:47]} 49. Rxa5 {[%clk 0:00:19]}  Nc4 {[%clk 0:00:47]} 50. Ra7+ {[%clk 0:00:18]}  Kf6 {[%clk 0:00:45]} 51. Ra6+ {[%clk 0:00:16]}  Ke7 {[%clk 0:00:44]} 52. Kg1 {[%clk 0:00:14]}  Rb1+ {[%clk 0:00:43]} 53. Kg2 {[%clk 0:00:12]}  Rb2 {[%clk 0:00:44]} 54. g4 {[%clk 0:00:11]}  Nxe3+ {[%clk 0:00:43]} 55. Kg3 {[%clk 0:00:11]}  Nf1+ {[%clk 0:00:43]} 56. Kf4 {[%clk 0:00:08]}  Rxf2 {[%clk 0:00:42]} 57. Ra3 {[%clk 0:00:02]}  Rd2 {[%clk 0:00:41]} 0-1


[Site "https://www.chess.com"]

[Event "Titled Tuesday Blitz March 22 Early 2022"]
[White "Ismayil, Malak"]
[Black "Buscar, Michael"]
[WhiteFideId "13412604"]
[BlackFideId "2603616"]
[WhiteElo "1879"]
[BlackElo "2010"]
[Result "0-1"]
[Round "07"]
[TimeControl "180+1"]
[Date "2022.03.22"]
[WhiteClock "0:00:24"]
[BlackClock "0:00:15"]

1. e4 {[%clk 0:02:27]}  c5 {[%clk 0:02:57]} 2. Nf3 {[%clk 0:02:14]}  Nc6 {[%clk 0:02:57]} 3. Bb5 {[%clk 0:02:13]}  Nf6 {[%clk 0:02:57]} 4. d3 {[%clk 0:02:12]}  Nd4 {[%clk 0:02:49]} 5. Nxd4 {[%clk 0:02:09]}  cxd4 {[%clk 0:02:50]} 6. O-O {[%clk 0:02:10]}  a6 {[%clk 0:02:45]} 7. Bc4 {[%clk 0:02:09]}  g6 {[%clk 0:02:40]} 8. e5 {[%clk 0:02:06]}  Ng8 {[%clk 0:02:35]} 9. Qf3 {[%clk 0:02:03]}  e6 {[%clk 0:02:34]} 10. c3 {[%clk 0:02:01]}  d5 {[%clk 0:02:29]} 11. exd6 {[%clk 0:01:56]}  Qxd6 {[%clk 0:02:27]} 12. Bf4 {[%clk 0:01:44]}  Qc5 {[%clk 0:02:20]} 13. cxd4 {[%clk 0:01:40]}  Qxd4 {[%clk 0:02:16]} 14. Nc3 {[%clk 0:01:40]}  Bd6 {[%clk 0:02:01]} 15. Ne2 {[%clk 0:01:31]}  Qb6 {[%clk 0:01:53]} 16. Bxd6 {[%clk 0:01:19]}  Qxd6 {[%clk 0:01:52]} 17. Ng3 {[%clk 0:01:19]}  Qd4 {[%clk 0:01:38]} 18. Ne4 {[%clk 0:01:14]}  f5 {[%clk 0:01:15]} 19. Ng5 {[%clk 0:01:11]}  e5 {[%clk 0:01:04]} 20. Nf7 {[%clk 0:01:09]}  e4 {[%clk 0:00:41]} 21. Qe2 {[%clk 0:00:55]}  b5 {[%clk 0:00:40]} 22. Bb3 {[%clk 0:00:53]}  Bb7 {[%clk 0:00:38]} 23. Nxh8 {[%clk 0:00:52]}  Qxh8 {[%clk 0:00:38]} 24. dxe4 {[%clk 0:00:50]}  O-O-O {[%clk 0:00:32]} 25. Rac1+ {[%clk 0:00:42]}  Kb8 {[%clk 0:00:31]} 26. exf5 {[%clk 0:00:30]}  gxf5 {[%clk 0:00:26]} 27. Qe3 {[%clk 0:00:28]}  Ka8 {[%clk 0:00:18]} 28. Qb6 {[%clk 0:00:25]}  Qg7 {[%clk 0:00:15]} 29. Rc7 {[%clk 0:00:24]}  Qxg2# {[%clk 0:00:15]} 0-1


[Site "https://www.chess.com"]

[Event "Titled Tuesday Blitz March 22 Early 2022"]
[White "Jary, Sergey"]
[Black "Mikhnenko, Alexander"]
[WhiteFideId "14110350"]
[BlackFideId "34143014"]
[WhiteElo "2260"]
[BlackElo "2184"]
[Result "1-0"]
[Round "07"]
[TimeControl "180+1"]
[Date "2022.03.22"]
[WhiteClock "0:01:14"]
[BlackClock "0:00:10"]

1. e4 {[%clk 0:02:59]}  c5 {[%clk 0:02:46]} 2. Nf3 {[%clk 0:02:59]}  e6 {[%clk 0:02:45]} 3. c4 {[%clk 0:02:58]}  Nc6 {[%clk 0:02:43]} 4. Nc3 {[%clk 0:02:56]}  Nf6 {[%clk 0:02:43]} 5. d4 {[%clk 0:02:53]}  cxd4 {[%clk 0:02:43]} 6. Nxd4 {[%clk 0:02:53]}  Bb4 {[%clk 0:02:43]} 7. Nxc6 {[%clk 0:02:53]}  dxc6 {[%clk 0:02:43]} 8. Qxd8+ {[%clk 0:02:53]}  Kxd8 {[%clk 0:02:43]} 9. Bg5 {[%clk 0:02:52]}  h6 {[%clk 0:02:42]} 10. Bf4 {[%clk 0:02:41]}  Bxc3+ {[%clk 0:02:37]} 11. bxc3 {[%clk 0:02:42]}  Nxe4 {[%clk 0:02:38]} 12. Bd3 {[%clk 0:02:38]}  Nxc3 {[%clk 0:02:34]} 13. Be5 {[%clk 0:02:35]}  Na4 {[%clk 0:02:25]} 14. Bxg7 {[%clk 0:02:34]}  Rg8 {[%clk 0:02:24]} 15. Bf6+ {[%clk 0:02:34]}  Kc7 {[%clk 0:02:19]} 16. O-O {[%clk 0:02:33]}  b6 {[%clk 0:02:16]} 17. Be5+ {[%clk 0:02:27]}  Kb7 {[%clk 0:02:14]} 18. Bh7 {[%clk 0:02:27]}  Rg5 {[%clk 0:02:12]} 19. f4 {[%clk 0:02:26]}  Rh5 {[%clk 0:01:59]} 20. Bg8 {[%clk 0:02:21]}  Bd7 {[%clk 0:01:28]} 21. Bxf7 {[%clk 0:02:19]}  Rh4 {[%clk 0:01:29]} 22. Rad1 {[%clk 0:02:13]}  Nc5 {[%clk 0:01:25]} 23. g3 {[%clk 0:02:07]}  Rg4 {[%clk 0:01:22]} 24. Kg2 {[%clk 0:01:59]}  Be8 {[%clk 0:00:51]} 25. Kf3 {[%clk 0:01:58]}  Bxf7 {[%clk 0:00:47]} 26. Kxg4 {[%clk 0:01:58]}  Rg8+ {[%clk 0:00:47]} 27. Kh3 {[%clk 0:01:51]}  Bh5 {[%clk 0:00:46]} 28. Rd4 {[%clk 0:01:49]}  Bg4+ {[%clk 0:00:45]} 29. Kg2 {[%clk 0:01:48]}  Bf5 {[%clk 0:00:45]} 30. Rfd1 {[%clk 0:01:39]}  h5 {[%clk 0:00:39]} 31. h3 {[%clk 0:01:34]}  a5 {[%clk 0:00:25]} 32. Rd8 {[%clk 0:01:31]}  Be4+ {[%clk 0:00:21]} 33. Kh2 {[%clk 0:01:28]}  Rg6 {[%clk 0:00:20]} 34. Rb8+ {[%clk 0:01:18]}  Ka7 {[%clk 0:00:17]} 35. Rdd8 {[%clk 0:01:18]}  Nd3 {[%clk 0:00:10]} 36. Rd7+ {[%clk 0:01:14]}  Ka6 {[%clk 0:00:10]} 37. Ra8# {[%clk 0:01:14]} 1-0


[Site "https://www.chess.com"]

[Event "Titled Tuesday Blitz March 22 Early 2022"]
[White "Jaskolka, Tomasz"]
[Black "Golubka, Petro"]
[WhiteFideId "1170791"]
[BlackFideId "14114224"]
[WhiteElo "2073"]
[BlackElo "2346"]
[Result "0-1"]
[Round "07"]
[TimeControl "180+1"]
[Date "2022.03.22"]
[WhiteClock "0:00:04"]
[BlackClock "0:01:16"]

1. d4 {[%clk 0:03:00]}  Nf6 {[%clk 0:02:59]} 2. Bf4 {[%clk 0:03:01]}  g6 {[%clk 0:03:00]} 3. Nc3 {[%clk 0:03:00]}  Bg7 {[%clk 0:03:00]} 4. e4 {[%clk 0:03:01]}  d6 {[%clk 0:03:00]} 5. Qd2 {[%clk 0:03:01]}  h6 {[%clk 0:03:01]} 6. h4 {[%clk 0:03:01]}  c6 {[%clk 0:03:00]} 7. Nf3 {[%clk 0:03:00]}  b5 {[%clk 0:03:00]} 8. a3 {[%clk 0:02:58]}  a6 {[%clk 0:02:59]} 9. Bd3 {[%clk 0:02:57]}  Bg4 {[%clk 0:02:57]} 10. O-O-O {[%clk 0:02:55]}  Nbd7 {[%clk 0:02:50]} 11. Kb1 {[%clk 0:02:39]}  Nh5 {[%clk 0:02:49]} 12. Bh2 {[%clk 0:02:37]}  Bxf3 {[%clk 0:02:43]} 13. gxf3 {[%clk 0:02:37]}  Bxd4 {[%clk 0:02:41]} 14. Bxb5 {[%clk 0:02:25]}  axb5 {[%clk 0:02:40]} 15. Qxd4 {[%clk 0:02:25]}  O-O {[%clk 0:02:40]} 16. e5 {[%clk 0:02:11]}  Nxe5 {[%clk 0:02:39]} 17. Bxe5 {[%clk 0:02:09]}  dxe5 {[%clk 0:02:40]} 18. Qxe5 {[%clk 0:02:09]}  Qb8 {[%clk 0:02:33]} 19. Qxe7 {[%clk 0:02:05]}  Qf4 {[%clk 0:02:30]} 20. Qe3 {[%clk 0:02:05]}  Rfe8 {[%clk 0:02:28]} 21. Qxf4 {[%clk 0:01:38]}  Nxf4 {[%clk 0:02:29]} 22. Ne4 {[%clk 0:01:38]}  Kg7 {[%clk 0:02:24]} 23. Rd7 {[%clk 0:01:37]}  Red8 {[%clk 0:02:20]} 24. Rhd1 {[%clk 0:01:34]}  Nd5 {[%clk 0:02:19]} 25. Rb7 {[%clk 0:01:25]}  Kf8 {[%clk 0:02:18]} 26. Kc1 {[%clk 0:01:19]}  b4 {[%clk 0:02:16]} 27. c4 {[%clk 0:00:50]}  bxa3 {[%clk 0:02:12]} 28. bxa3 {[%clk 0:00:29]}  Nf4 {[%clk 0:02:10]} 29. Nd6 {[%clk 0:00:24]}  f5 {[%clk 0:02:07]} 30. Kb2 {[%clk 0:00:19]}  Rab8 {[%clk 0:02:03]} 31. Rxb8 {[%clk 0:00:19]}  Rxb8+ {[%clk 0:02:04]} 32. Kc3 {[%clk 0:00:19]}  Ke7 {[%clk 0:02:03]} 33. c5 {[%clk 0:00:19]}  Nd5+ {[%clk 0:02:01]} 34. Kc4 {[%clk 0:00:17]}  Rb2 {[%clk 0:02:01]} 35. Re1+ {[%clk 0:00:18]}  Kd7 {[%clk 0:02:00]} 36. Nf7 {[%clk 0:00:18]}  Rc2+ {[%clk 0:01:59]} 37. Kd3 {[%clk 0:00:18]}  Rxf2 {[%clk 0:01:58]} 38. Ne5+ {[%clk 0:00:17]}  Kc7 {[%clk 0:01:59]} 39. Nxg6 {[%clk 0:00:17]}  Rxf3+ {[%clk 0:01:58]} 40. Kd4 {[%clk 0:00:18]}  Rxa3 {[%clk 0:01:58]} 41. Ne7 {[%clk 0:00:16]}  Ra4+ {[%clk 0:01:55]} 42. Kd3 {[%clk 0:00:16]}  Rxh4 {[%clk 0:01:51]} 43. Nxd5+ {[%clk 0:00:15]}  cxd5 {[%clk 0:01:51]} 44. Re5 {[%clk 0:00:16]}  Kc6 {[%clk 0:01:51]} 45. Rxf5 {[%clk 0:00:16]}  Kxc5 {[%clk 0:01:49]} 46. Rf3 {[%clk 0:00:16]}  h5 {[%clk 0:01:48]} 47. Rf5 {[%clk 0:00:15]}  Rd4+ {[%clk 0:01:47]} 48. Kc3 {[%clk 0:00:15]}  h4 {[%clk 0:01:45]} 49. Rh5 {[%clk 0:00:15]}  Rg4 {[%clk 0:01:45]} 50. Kd2 {[%clk 0:00:15]}  Kd4 {[%clk 0:01:45]} 51. Ke2 {[%clk 0:00:15]}  Ke4 {[%clk 0:01:44]} 52. Rh8 {[%clk 0:00:15]}  d4 {[%clk 0:01:44]} 53. Re8+ {[%clk 0:00:15]}  Kf4 {[%clk 0:01:44]} 54. Rf8+ {[%clk 0:00:15]}  Kg3 {[%clk 0:01:44]} 55. Rf3+ {[%clk 0:00:15]}  Kg2 {[%clk 0:01:43]} 56. Rf2+ {[%clk 0:00:15]}  Kh3 {[%clk 0:01:42]} 57. Rf3+ {[%clk 0:00:15]}  Kh2 {[%clk 0:01:42]} 58. Rf8 {[%clk 0:00:14]}  h3 {[%clk 0:01:41]} 59. Kf3 {[%clk 0:00:14]}  Rh4 {[%clk 0:01:40]} 60. Rg8 {[%clk 0:00:12]}  Rh7 {[%clk 0:01:38]} 61. Kf2 {[%clk 0:00:11]}  Rd7 {[%clk 0:01:34]} 62. Ke2 {[%clk 0:00:10]}  Ra7 {[%clk 0:01:30]} 63. Kd3 {[%clk 0:00:10]}  Rd7 {[%clk 0:01:28]} 64. Rg6 {[%clk 0:00:09]}  Kh1 {[%clk 0:01:27]} 65. Rg5 {[%clk 0:00:09]}  h2 {[%clk 0:01:26]} 66. Rg4 {[%clk 0:00:09]}  Rd8 {[%clk 0:01:22]} 67. Kd2 {[%clk 0:00:08]}  Rf8 {[%clk 0:01:17]} 68. Rxd4 {[%clk 0:00:03]}  Rf1 {[%clk 0:01:18]} 69. Rg4 {[%clk 0:00:03]}  Rg1 {[%clk 0:01:17]} 70. Rh4 {[%clk 0:00:03]}  Kg2 {[%clk 0:01:17]} 71. Rg4+ {[%clk 0:00:03]}  Kf3 {[%clk 0:01:17]} 72. Rh4 {[%clk 0:00:04]}  h1=Q {[%clk 0:01:16]} 73. Rh2 {[%clk 0:00:04]} 0-1


[Site "https://www.chess.com"]

[Event "Titled Tuesday Blitz March 22 Early 2022"]
[White "Krylov, Ivan"]
[Black "Melikhov, Evgeny V."]
[WhiteFideId "24128066"]
[BlackFideId "4122046"]
[WhiteElo "2258"]
[BlackElo "1945"]
[Result "0-1"]
[Round "07"]
[TimeControl "180+1"]
[Date "2022.03.22"]
[WhiteClock "0:00:10"]
[BlackClock "0:00:56"]

1. e4 {[%clk 0:03:00]}  c5 {[%clk 0:02:57]} 2. Nf3 {[%clk 0:03:00]}  d6 {[%clk 0:02:57]} 3. c3 {[%clk 0:03:01]}  Nf6 {[%clk 0:02:56]} 4. h3 {[%clk 0:03:01]}  Bd7 {[%clk 0:02:55]} 5. Bd3 {[%clk 0:03:01]}  Bc6 {[%clk 0:02:55]} 6. Qe2 {[%clk 0:03:01]}  Nbd7 {[%clk 0:02:54]} 7. O-O {[%clk 0:02:57]}  e6 {[%clk 0:02:49]} 8. Bc2 {[%clk 0:02:55]}  Be7 {[%clk 0:02:44]} 9. d4 {[%clk 0:02:52]}  O-O {[%clk 0:02:43]} 10. Nbd2 {[%clk 0:02:26]}  cxd4 {[%clk 0:02:41]} 11. cxd4 {[%clk 0:02:24]}  Qc7 {[%clk 0:02:36]} 12. Qd3 {[%clk 0:02:22]}  Rac8 {[%clk 0:02:33]} 13. e5 {[%clk 0:02:20]}  Bxf3 {[%clk 0:02:29]} 14. exf6 {[%clk 0:02:11]}  Nxf6 {[%clk 0:02:29]} 15. Qxf3 {[%clk 0:01:54]}  Qxc2 {[%clk 0:02:28]} 16. Qxb7 {[%clk 0:01:54]}  Qc7 {[%clk 0:02:21]} 17. Qb3 {[%clk 0:01:45]}  d5 {[%clk 0:02:18]} 18. Nf3 {[%clk 0:01:42]}  Rb8 {[%clk 0:02:17]} 19. Qd3 {[%clk 0:01:37]}  Rfc8 {[%clk 0:02:16]} 20. Rb1 {[%clk 0:01:20]}  Qc2 {[%clk 0:02:14]} 21. Rd1 {[%clk 0:01:12]}  Qxd3 {[%clk 0:02:10]} 22. Rxd3 {[%clk 0:01:10]}  Ne4 {[%clk 0:02:10]} 23. Bf4 {[%clk 0:01:02]}  Rb7 {[%clk 0:02:08]} 24. Nd2 {[%clk 0:00:51]}  Rc2 {[%clk 0:01:58]} 25. Nxe4 {[%clk 0:00:48]}  dxe4 {[%clk 0:01:58]} 26. Rd2 {[%clk 0:00:46]}  Rxd2 {[%clk 0:01:35]} 27. Bxd2 {[%clk 0:00:47]}  f5 {[%clk 0:01:32]} 28. Bc3 {[%clk 0:00:46]}  Kf7 {[%clk 0:01:31]} 29. Rd1 {[%clk 0:00:45]}  Rb5 {[%clk 0:01:30]} 30. Kf1 {[%clk 0:00:43]}  Bf6 {[%clk 0:01:30]} 31. Ke2 {[%clk 0:00:43]}  Ke7 {[%clk 0:01:29]} 32. g3 {[%clk 0:00:42]}  Kd6 {[%clk 0:01:29]} 33. h4 {[%clk 0:00:41]}  Kd5 {[%clk 0:01:29]} 34. Ke3 {[%clk 0:00:41]}  g6 {[%clk 0:01:27]} 35. a4 {[%clk 0:00:23]}  Rb3 {[%clk 0:01:25]} 36. a5 {[%clk 0:00:20]}  a6 {[%clk 0:01:24]} 37. Rd2 {[%clk 0:00:16]}  Bg7 {[%clk 0:01:23]} 38. Ke2 {[%clk 0:00:15]}  Bf6 {[%clk 0:01:11]} 39. Kd1 {[%clk 0:00:15]}  Bd8 {[%clk 0:01:06]} 40. Kc2 {[%clk 0:00:15]}  Rb5 {[%clk 0:01:06]} 41. b4 {[%clk 0:00:12]}  Kc4 {[%clk 0:01:03]} 42. Rd1 {[%clk 0:00:08]}  Be7 {[%clk 0:01:00]} 43. Rb1 {[%clk 0:00:07]}  Bf6 {[%clk 0:01:00]} 44. Rd1 {[%clk 0:00:06]}  Rd5 {[%clk 0:00:59]} 45. Be1 {[%clk 0:00:02]}  Rxd4 {[%clk 0:00:58]} 46. Rxd4+ {[%clk 0:00:02]}  Bxd4 {[%clk 0:00:58]} 47. Kb1 {[%clk 0:00:01]}  Be5 {[%clk 0:00:57]} 48. Kc2 {[%clk 0:00:01]}  Bd6 {[%clk 0:00:57]} 49. Kb1 {[%clk 0:00:02]}  Bxb4 {[%clk 0:00:57]} 50. Bxb4 {[%clk 0:00:02]}  Kxb4 {[%clk 0:00:57]} 51. Kb2 {[%clk 0:00:03]}  Kxa5 {[%clk 0:00:57]} 52. Ka3 {[%clk 0:00:04]}  Kb5 {[%clk 0:00:55]} 53. Kb3 {[%clk 0:00:04]}  a5 {[%clk 0:00:55]} 54. Ka3 {[%clk 0:00:04]}  Kc4 {[%clk 0:00:55]} 55. Ka4 {[%clk 0:00:05]}  Kd3 {[%clk 0:00:56]} 56. Kxa5 {[%clk 0:00:05]}  Ke2 {[%clk 0:00:56]} 57. Kb5 {[%clk 0:00:06]}  Kxf2 {[%clk 0:00:56]} 58. Kc4 {[%clk 0:00:07]}  e3 {[%clk 0:00:57]} 59. Kd4 {[%clk 0:00:07]}  e2 {[%clk 0:00:57]} 60. Ke5 {[%clk 0:00:08]}  e1=Q+ {[%clk 0:00:57]} 61. Kf6 {[%clk 0:00:09]}  Kxg3 {[%clk 0:00:57]} 62. Kg7 {[%clk 0:00:09]}  f4 {[%clk 0:00:56]} 63. Kxh7 {[%clk 0:00:10]}  f3 {[%clk 0:00:56]} 64. h5 {[%clk 0:00:09]}  gxh5 {[%clk 0:00:56]} 65. Kh6 {[%clk 0:00:09]}  f2 {[%clk 0:00:56]} 66. Kg5 {[%clk 0:00:09]}  f1=Q {[%clk 0:00:56]} 67. Kh6 {[%clk 0:00:09]}  Qf4+ {[%clk 0:00:56]} 68. Kg7 {[%clk 0:00:10]}  Qee5+ {[%clk 0:00:56]} 69. Kg8 {[%clk 0:00:10]}  Qeg5+ {[%clk 0:00:56]} 70. Kh8 {[%clk 0:00:10]}  Qff6+ {[%clk 0:00:55]} 71. Kh7 {[%clk 0:00:10]}  Qfg7# {[%clk 0:00:56]} 0-1


[Site "https://www.chess.com"]